Cogmind - Beta 16.1 @@@ ROGUE MODE // 2026.04.30 @ 23:21:54 Player: SunShine214 Result: Destroyed by L-61 Swordsman with Power Sword Performance ------------- Evolutions (8) 4000 Regions Visited (8) 1600 Robots Destroyed (84) 420 Value Destroyed (3365) 3365 Prototype IDs (23) 460 Alien Tech Used (0) 0 Bonus (2154) 2154 TOTAL SCORE: 11999 Bonus ------- High Alert Combat Kills 240 Follower Combat Kills 1114 Registered with UFD 300 Met Optimus in HQ 500 Cogmind --------- Core Integrity 0/1450 Matter 81/300 Energy 92/100 System Corruption 9% Temperature Cool (0) Movement Core (50) Location -2/Research Parts ------- > --- POWER (2) -------- (None) > --- PROPULSION (6) --- (None) > --- UTILITY (10) ----- Spectral Analyzer Experimental Signal Interpreter Advanced Target Analyzer Makeshift Core Shielding Advanced Hacking Suite > --- WEAPON (5) ------- (None) > --- INVENTORY (5) ---- Spectral Analyzer Cloaking Device Enhanced Hardcell Cannon Fusion Bomb Launcher Improved Plasma Cutter Peak State ------------ > --- POWER ------------ Light Ion Engine Light Particle Reactor > --- PROPULSION ------- Enhanced Armored Leg Enhanced Armored Leg Enhanced Armored Leg Biometal Leg Impulse Thruster Array > --- UTILITY ---------- Advanced Heat Sink Experimental Optical Array Spectral Analyzer Experimental Signal Interpreter Advanced Target Analyzer Layered Light Armor Plating Advanced Powered Armor Hacking Suite > --- WEAPON ----------- Matter Neutralizer Improved KE Penetrator Heavy Gauss Cannon Linear Accelerator Compact Mass Driver > --- INVENTORY -------- Particle Reactor Improved Diametric Drive Fusion Bomb Launcher Fusion Bomb Launcher Improved Plasma Cutter [Rating: 147] Favorites ----------- Power Meta Core Engine Light Ion Engine Power Core Meta Core Reactor Light Particle Reactor Propulsion Spiked Treads Treads Spiked Treads Leg Enhanced Armored Leg Wheel Compact Wheel Hover Unit Antigrav Array Flight Unit VTOL Module Utility Spectral Analyzer Device Seismic Detector Storage Medium Storage Unit Processor Spectral Analyzer Hackware Hacking Suite Protection Layered Light Armor Plating Weapon Subdweller Beam Cannon Energy Gun Medium Laser Energy Cannon Subdweller Beam Cannon Ballistic Gun Improved KE Penetrator Ballistic Cannon Compact Mass Driver Launcher Grenade Launcher Special Weapon Mining Laser Impact Weapon Heavy Mace Slashing Weapon Falx Special Melee Weapon 1B-0RG's Assimilator Build | -11 -10 -10 -9 -6 -5 -4 -3 -2 ------- Run | Yrd Mat Sub Scr Fac Fac Fac Res Res Slots Evolved 16 | . . . . 8 2 2 2 2 Power 1 | . . . . . . . 1 . Propulsion 4 | . . . . 1 1 2 . . Utility 8 | . . . . 4 1 . 1 2 Weapon 3 | . . . . 3 . . . . Parts Attached 125 | 8 9 5 5 11 22 20 29 16 Power 15 | 1 . 1 . . 3 4 4 2 Engine 3 | 1 . . . . 1 . 1 . Core 6 | . . 1 . . 2 3 . . Reactor 6 | . . . . . . 1 3 2 Propulsion 38 | 2 2 2 1 3 9 5 11 3 Treads 11 | 2 2 2 1 3 . . 1 . Leg 5 | . . . . . . . 4 1 Wheel 4 | . . . . . 4 . . . Hover 2 | . . . . . . . 2 . Flight 16 | . . . . . 5 5 4 2 Utility 38 | 2 2 . 4 5 5 6 8 6 Device 14 | 1 . . . 3 4 1 3 2 Storage 6 | 1 2 . 2 1 . . . . Processor 9 | . . . 2 1 1 4 1 . Hackware 3 | . . . . . . 1 . 2 Protection 6 | . . . . . . . 4 2 Artifact . | . . . . . . . . . Weapon 34 | 3 5 2 . 3 5 5 6 5 Energy Gun 7 | 3 1 . . 1 . 1 . 1 Energy Cannon 6 | . 2 1 . . 1 . 2 . Ballistic Gun 3 | . . . . . . . 2 1 Ballistic Cannon 6 | . . . . . . 3 2 1 Launcher 5 | . 1 1 . 1 1 . . 1 Special Weapon 2 | . 1 . . . 1 . . . Impact Weapon 1 | . . . . . 1 . . . Slashing Weapon 3 | . . . . . 1 1 . 1 Piercing Weapon . | . . . . . . . . . Special Melee Weapon 1 | . . . . 1 . . . . Unidentified Prototypes 10 | . . 1 . . 1 1 4 3 Parts Lost 64 | . . 2 . 13 5 15 16 13 Power 13 | . . 1 . 1 1 5 1 4 Propulsion 22 | . . . . 5 1 8 4 4 Utility 18 | . . . . 3 3 1 6 5 Weapon 11 | . . 1 . 4 . 1 5 . Highest Loss Streak 10 | . . 1 . 10 4 4 7 4 To Critical Strikes . | . . . . . . . . . Average Backups 6 | . 8 8 7 7 4 4 4 4 Power . | . . . . . . . . . Propulsion 2 | . 4 4 2 . . . . . Utility 1 | . 1 1 1 1 . . . . Weapon 2 | . 2 2 1 2 2 2 1 1 Tool/Special . | . . . . . . . . . Unused Backups 20 | . 2 3 2 4 2 1 . 6 Power . | . . . . . . . . . Propulsion 7 | . 1 2 1 . 1 . . 2 Utility 7 | . 1 1 1 1 1 . . 2 Weapon 4 | . . . . 1 . 1 . 2 Tool/Special 2 | . . . . 2 . . . . Average Slot Usage (%) 71 | . 100 87 67 65 48 52 75 40 Engine 2 | . 14 2 . . . . 1 . Core 2 | . . . 10 4 . 3 . . Treads 15 | . 28 27 21 19 . . . . Leg 2 | . . . . . . . 15 1 Flight 2 | . . . . . 7 17 1 5 Device 8 | . 14 13 7 5 12 3 4 3 Storage 7 | . 14 13 10 10 . . . . Processor 8 | . . . 7 14 15 17 15 13 Hackware 1 | . . . . . . . 4 8 Protection 1 | . . . . . . . 7 2 Energy Gun 1 | . 9 . . . . . . . Energy Cannon 6 | . 14 12 10 4 . . 2 . Ballistic Cannon 1 | . . . . . . 2 8 1 Launcher 3 | . 4 13 . 3 . . . . Peak Build Rating 147 | 7 8 28 50 124 66 80 147 100 Average Rating 44 | 5 7 11 35 63 42 59 114 71 On Entrance 30 | . 7 8 28 50 13 57 40 68 Avg Prop Armor Cover (%) 4 | . . . . . 5 . 3 11 Naked Turns . | . . . . . . . . . Heaviest Build 90 | 12 20 28 35 90 22 29 83 31 Greatest Support 88 | 40 40 40 60 80 64 33 88 70 Greatest Overweight (x) 11 | . . . . 11 3 1 3 3 Average Overweight (x) . | . . . . . . . . . Largest Inventory Capacity 15 | 8 10 10 15 15 5 5 5 5 Average Capacity 8 | 7 9 10 12 14 5 5 5 5 Most Carried 15 | 1 10 10 15 15 5 5 5 5 Average Carried 8 | . 8 9 11 14 4 4 4 4 Final Capacity 15 | 8 10 10 15 5 5 5 5 5 Final Carried 15 | 1 10 9 15 3 5 4 5 5 Scrap Suit Usage (%) 3 | . . . . . . . . 40 Class Distribution -------------------- 58% | Mutant 6% | Assassin 6% | Skirmisher 5% | Hacker-Sprinter 4% | Scavenger-Tank 3% | Scout 3% | Scavenger-Mutant 3% | Scavenger-Scout Dominant Class ---------------- Mutant | -10/Materials Mutant | -10/Subcaves Mutant | -9/Scraptown Skirmisher | -6/Factory Mutant | -5/Factory Scavenger-Scout | -4/Factory Assassin | -3/Research Hacker-Sprinter | -2/Research Resources | -11 -10 -10 -9 -6 -5 -4 -3 -2 ----------- Run | Yrd Mat Sub Scr Fac Fac Fac Res Res Matter Collected 2755 | 270 171 72 235 183 63 497 712 552 Remotely . | . . . . . . . . . Salvage Created 2686 | 193 448 129 . 363 230 320 732 271 Parts 161 | 12 32 10 . 11 12 20 53 11 Haulers Intercepted 2 | . 2 . . . . . . . Recyclers Shooed 4 | . 1 . . . 1 . 2 . Parts Field Recycled . | . . . . . . . . . Retrieved Matter . | . . . . . . . . . Parts Self-Destructed 9 | . . 9 . . . . . . Prevented . | . . . . . . . . . Parts Restored . | . . . . . . . . . Kills | -11 -10 -10 -9 -6 -5 -4 -3 -2 ------- Run | Yrd Mat Sub Scr Fac Fac Fac Res Res Combat Hostiles Destroyed 63 | . 11 6 . 9 6 10 15 6 Melee 7 | . . . . . 1 6 . . Guns 3 | . 3 . . . . . . . Cannons 25 | . 4 1 . 1 . 2 14 3 AOE 25 | . 4 5 . 6 5 2 . 3 Classes Destroyed 13 | 2 5 2 . 1 . 1 2 . Worker 3 | . 3 . . . . . . . Builder 3 | . . . . . . . 3 . Tunneler 6 | 5 . . . . . 1 . . Hauler 2 | . 2 . . . . . . . Recycler 2 | 1 . . . . 1 . . . Operator 1 | . . . . . . 1 . . Watcher 4 | . 3 . . 1 . . . . Swarmer 19 | . 6 . . . 5 8 . . Cutter 3 | . . . . . . . 3 . Grunt 20 | . 5 . . 7 1 1 1 5 Sentry 4 | . . 1 . 1 . 1 1 . Programmer 12 | . . . . 1 . . 10 1 Subdweller 5 | . . 5 . . . . . . Best Kill Streak 5 | 2 4 2 . 4 5 4 5 3 Combat Bots Only 5 | . 3 2 . 4 5 4 4 3 Max Kills in Single Turn 3 | 1 3 1 . 2 2 2 1 1 Gunslinging . | . . . . . . . . . Exploded 2 | . 2 1 . 2 2 2 . 1 Melee 1 | . . . . . 1 1 . . Uniques/NPCs Destroyed . | . . . . . . . . . Combat | -11 -10 -10 -9 -6 -5 -4 -3 -2 -------- Run | Yrd Mat Sub Scr Fac Fac Fac Res Res Hostile Shots Fired 1157 | . 30 21 . 226 46 133 498 203 Missed 506 | . 10 10 . 78 21 49 247 91 Hits 651 | . 20 11 . 148 25 84 251 112 Melee 10 | . . . . . . . 6 4 Projectile 641 | . 20 11 . 148 25 84 245 108 Critical Strikes 31 | . . 1 . 5 . 3 15 7 Actively Blocked 3 | . . . . . . . . 3 Part Disruptions 2 | . . . . . . . 1 1 Damage Taken 12139 | . 210 238 . 2427 583 1566 4175 2940 Core 3373 | . 72 . . 738 222 506 371 1464 Absorbed by Shields . | . . . . . . . . . Redirected to Shielding 161 | . . . . . . . . 161 Ignored by Resistances 36 | . . . . 36 . . . . Core Remaining (%) 64 | 100 . . 71 13 77 56 71 . Volleys Fired 213 | 16 29 37 . 25 3 16 64 23 Largest 5 | 2 2 2 . 2 1 1 5 1 Hottest 297 | 90 150 110 . 113 39 55 297 58 Shots Fired 362 | 30 61 54 . 42 3 16 133 23 Gun 98 | 30 36 . . 1 . . 30 1 Cannon 209 | . 21 28 . 24 . 16 103 17 Launcher 45 | . 3 17 . 17 3 . . 5 Special 10 | . 1 9 . . . . . . Kinetic 133 | . . . . . . 16 99 18 Thermal 184 | 30 58 37 . 25 . . 34 . Explosive 45 | . 3 17 . 17 3 . . 5 Electromagnetic . | . . . . . . . . . Robot Hit Streak 12 | 5 10 7 . 8 1 2 9 12 Robot Miss Streak 8 | 5 3 1 . 1 3 3 8 1 Penetration Max 1 | . . . . . . . 1 . Secondary Targets . | . . . . . . . . . Shots Hit Robots 195 | 18 32 17 . 23 5 23 62 15 Core Hits 127 | 7 23 11 . 25 10 14 26 11 Critical Kills 3 | . . . . 2 . . 1 . Critical Parts Destroyed 2 | . . . . . . . 2 . Critical Strikes 17 | . 1 . . 2 . 3 7 4 Burn 1 | . 1 . . . . . . . Meltdown 3 | . . . . 2 . . 1 . Destroy 2 | . . . . . . . 2 . Blast 10 | . . . . . . 2 4 4 Sever 1 | . . . . . . 1 . . Melee Attacks 79 | . . . . . 21 50 8 . Impact . | . . . . . . . . . Slashing 79 | . . . . . 21 50 8 . Piercing . | . . . . . . . . . Sneak Attacks 3 | . . . . . 2 1 . . Combat Hostiles . | . . . . . . . . . Follow-up Attacks . | . . . . . . . . . Damage Inflicted 9456 | 197 670 1045 . 1121 537 1347 2950 1589 Guns 1003 | 197 286 . . 18 . . 502 . Cannons 3777 | . 175 144 . 329 . 298 2438 393 Explosions 3637 | . 191 898 . 730 262 360 . 1196 Melee 964 | . . . . . 275 689 . . Ramming 75 | . 18 3 . 44 . . 10 . Kinetic 2737 | . . . . . . 298 2046 393 Thermal 2043 | 197 461 144 . 347 . . 894 . Explosive 3637 | . 191 898 . 730 262 360 . 1196 Electromagnetic . | . . . . . . . . . Impact . | . . . . . . . . . Slashing 964 | . . . . . 275 689 . . Piercing . | . . . . . . . . . Highest Corruption 25 | . 1 1 . 3 1 4 25 9 Average Corruption 3 | . 1 1 . 2 1 2 13 5 Corruption Purged . | . . . . . . . . . Corruption Blocked . | . . . . . . . . . Effects 96 | . 13 11 . 8 . 3 44 17 Message Errors 20 | . 2 3 . . . 1 11 3 Matter Fused 22 | . 4 4 . 3 . . 5 6 Heat Flow Errors 11 | . 1 1 . 3 . 1 4 1 Energy Discharges 10 | . 1 . . . . . 6 3 Parts Rejected 3 | . . . . . . . 1 2 Data Loss (minor) 11 | . . 2 . . . 1 8 . Data Loss (major) 7 | . 2 1 . 1 . . 1 2 Misfires 4 | . 3 . . . . . 1 . Alerts 1 | . . . . 1 . . . . Misdirections 3 | . . . . . . . 3 . Weapon Failures 4 | . . . . . . . 4 . Overload Shots . | . . . . . . . . . Overflow Damage 375 | . . 4 . . 49 149 67 106 Projectiles 72 | . . . . . . . 67 5 Explosions 161 | . . 4 . . 21 35 . 101 Melee 142 | . . . . . 28 114 . . Knockbacks 24 | . . . . 1 . 4 16 3 Impact 1 | . . . . 1 . . . . Kinetic 21 | . . . . . . 4 14 3 Secondary 2 | . . . . . . . 2 . Self-Inflicted Damage 138 | . 19 . . 3 29 87 . . Shots 3 | . 1 . . . 1 1 . . Rammed 10 | . 4 1 . 5 . . . . Targets Rammed 14 | . 4 1 . 6 . . 3 . Kicked 3 | . . . . . . . 3 . Crushed 1 | . . . . 1 . . . . Highest Temperature 531 | 170 240 252 . 249 . 246 531 107 Average Temperature 100 | 69 78 122 . 79 . 131 142 33 Received Heat Transfer 1482 | . 72 66 . 555 63 18 429 279 Effects 9 | . . . . . . . 9 . Shutdowns 1 | . . . . . . . 1 . Energy Bleed 2 | . . . . . . . 2 . Interference 6 | . . . . . . . 6 . Siege Activations . | . . . . . . . . . Martial Activations . | . . . . . . . . . Shielding Activations . | . . . . . . . . . Robots Disrupted . | . . . . . . . . . Combat Hostiles . | . . . . . . . . . Robots Corrupted . | . . . . . . . . . Combat Hostiles . | . . . . . . . . . Parts Fried . | . . . . . . . . . Impact Corruptions . | . . . . . . . . . Robots Melted 3 | . . . . 2 . . 1 . Combat Hostiles 3 | . . . . 2 . . 1 . Parts Melted 9 | 2 1 . . 3 . . 3 . Heat Transferred 3248 | 509 1259 259 . 481 . . 740 . Parts Sabotaged 2 | . . . . . . . . 2 Parts Stolen . | . . . . . . . . . Parts Stripped . | . . . . . . . . . Power Chain Reactions . | . . . . . . . . . Alert | -11 -10 -10 -9 -6 -5 -4 -3 -2 ------- Run | Yrd Mat Sub Scr Fac Fac Fac Res Res Maximum Alert Level 3 | . . . . 1 2 3 1 3 Low Security (%) 56 | 100 100 . . 98 88 1 . 18 Level 1 24 | . . . . 1 3 23 100 6 Level 2 11 | . . . . . 7 52 . 32 Level 3 7 | . . . . . . 23 . 42 Level 4 . | . . . . . . . . . Level 5 . | . . . . . . . . . High Security . | . . . . . . . . . Max Security . | . . . . . . . . . Peak Influence 998 | 5 70 . . 201 437 801 387 998 Initial 383 | . . . . . 16 208 383 192 Average 231 | 1 20 . . 91 73 525 319 619 Influence Increases 4658 | 30 361 20 . 441 787 1161 614 1244 Destroy 0b10 Robot/C 1640 | . 220 20 . 200 120 360 300 420 Destroy 0b10 Robot/NC 120 | 30 40 . . 10 5 10 15 10 Destroy Leader 292 | . 40 . . 42 10 70 60 70 Allied During Kill 66 | . . . . 2 . 20 . 44 Successful Hack 42 | . 6 . . . 18 8 . 10 Disable Machine 300 | . 30 . . 60 15 120 45 30 Destroy Structure 623 | . 10 . . 82 64 168 104 195 Partial Spotted 225 | . . . . . 90 90 . 45 Lose Combat Pursuer 1350 | . 15 . . 45 465 315 90 420 Influence Decreases 3734 | 30 361 20 . 406 395 857 1002 663 Entered New Map 737 | . . . . . 19 219 348 151 Time Decay 2171 | 30 361 20 . 360 226 318 494 362 Search Patrol Dispatched 100 | . . . . . 100 . . . Lost Part 536 | . . . . 46 50 150 160 130 Lost Ally 40 | . . . . . . 20 . 20 Purge Threat 150 | . . . . . . 150 . . Squads Dispatched 48 | . . . . 7 7 11 9 14 Investigation 18 | . . . . 3 4 5 1 5 Extermination 14 | . . . . 2 2 2 4 4 Reinforcement 11 | . . . . 2 1 1 4 3 Assault 5 | . . . . . . 3 . 2 Garrison . | . . . . . . . . . Intercept . | . . . . . . . . . Searches Triggered 1 | . . . . . 1 . . . Construction Impeded 1 | . . . . . 1 . . . Haulers Reinforced . | . . . . . . . . . Active Scanning Responses . | . . . . . . . . . Cargo Convoy Interrupts . | . . . . . . . . . Stealth | -11 -10 -10 -9 -6 -5 -4 -3 -2 --------- Run | Yrd Mat Sub Scr Fac Fac Fac Res Res Distress Signals 14 | . 3 . . . 3 1 1 6 Communications Jammed . | . . . . . . . . . Distress Signals . | . . . . . . . . . Times Spotted 233 | . 16 9 . 26 38 43 31 70 Peak Tracking Total 19 | . 3 3 . 8 19 10 7 19 Tactical Retreats 41 | . 1 1 . 3 9 13 4 10 Traps | -11 -10 -10 -9 -6 -5 -4 -3 -2 ------- Run | Yrd Mat Sub Scr Fac Fac Fac Res Res Traps Triggered 7 | . 1 . . . 2 2 1 1 Indirectly . | . . . . . . . . . Trap Hack Attempts . | . . . . . . . . . Triggered . | . . . . . . . . . Disarmed . | . . . . . . . . . Reprogrammed . | . . . . . . . . . Reused . | . . . . . . . . . Traps Extracted . | . . . . . . . . . Installed . | . . . . . . . . . Triggered . | . . . . . . . . . Machines | -11 -10 -10 -9 -6 -5 -4 -3 -2 ---------- Run | Yrd Mat Sub Scr Fac Fac Fac Res Res Machines Disabled 20 | . 2 . . 4 1 8 3 2 Max in Single Turn 4 | . 1 . . 2 1 4 1 . Garrison Access 1 | . . . . . 1 . . . Machines Repaired . | . . . . . . . . . Machines Dismantled . | . . . . . . . . . Machines Sabotaged . | . . . . . . . . . Overloaded Fab Kills . | . . . . . . . . . Hacking | -11 -10 -10 -9 -6 -5 -4 -3 -2 --------- Run | Yrd Mat Sub Scr Fac Fac Fac Res Res Machines Accessed 39 | . 2 . 4 5 9 7 2 10 Terminals 11 | . 1 . . 1 1 3 . 5 Fabricators . | . . . . . . . . . Repair Stations 1 | . . . . . . . . 1 Recycling Units 21 | . 1 . . 3 7 4 2 4 Scanalyzers 1 | . . . . 1 . . . . Garrison Access 1 | . . . . . 1 . . . Total Hacks 86 | . 6 . 25 8 15 15 4 13 Successful 52 | . 2 . 25 6 6 6 1 6 Failed 34 | . 4 . . 2 9 9 3 7 Catastrophic 7 | . . . . . 2 2 1 2 Database Lockouts . | . . . . . . . . . Manual 44 | . 4 . . 4 9 13 4 10 Terminals 20 | . 5 . . 1 3 5 . 6 Fabricators . | . . . . . . . . . Repair Stations 3 | . . . . . . . . 3 Recycling Units 32 | . 1 . . 4 9 10 4 4 Scanalyzers 3 | . . . . 3 . . . . Garrison Access 3 | . . . . . 3 . . . Terminal Hacks 32 | . 1 . 25 . 1 3 . 2 Record 20 | . . . 19 . . 1 . . Robot Analysis 6 | . . . 6 . . . . . Level Access Points 2 | . . . . . 1 1 . . Branch Access Points 1 | . . . . . . . . 1 Unreport Threat 1 | . . . . . . 1 . . Hauler Manifests 1 | . 1 . . . . . . . Zone Layout 1 | . . . . . . . . 1 Fabricator Hacks . | . . . . . . . . . Repair Station Hacks . | . . . . . . . . . Recycling Unit Hacks 1 | . 1 . . . . . . . Retrieve Components 1 | . 1 . . . . . . . Scanalyzer 3 | . . . . 3 . . . . Insert Component 1 | . . . . 1 . . . . Analyze 1 | . . . . 1 . . . . Retrieve Study 1 | . . . . 1 . . . . Garrison Access Hacks 1 | . . . . . 1 . . . Seal Access 1 | . . . . . 1 . . . Unauthorized Hacks 15 | . . . . 3 4 3 1 4 Terminals . | . . . . . . . . . Fabricators . | . . . . . . . . . Repair Stations . | . . . . . . . . . Recycling Units 15 | . . . . 3 4 3 1 4 Fedlink 13 | . . . . 3 4 2 1 3 Scraphulk 2 | . . . . . . 1 . 1 Scanalyzers . | . . . . . . . . . Garrison Access . | . . . . . . . . . Data Cores Recovered 1 | . . . . . . 1 . . Used 1 | . . . . . . 1 . . Hacking Detections 19 | . 1 . . 1 4 5 2 6 Full Trace Events 3 | . . . . . . 2 . 1 Feedback Events . | . . . . . . . . . Feedback Blocked . | . . . . . . . . . Robot Schematics Acquired . | . . . . . . . . . Robots Built . | . . . . . . . . . Authchips . | . . . . . . . . . Time . | . . . . . . . . . Total Robot Build Rating . | . . . . . . . . . Part Schematics Acquired 1 | . . . . 1 . . . . Parts Built . | . . . . . . . . . Authchips . | . . . . . . . . . Time . | . . . . . . . . . Total Part Build Rating . | . . . . . . . . . Part Studies Acquired 1 | . . . . 1 . . . . Parts Repaired . | . . . . . . . . . Time . | . . . . . . . . . Parts Recycled . | . . . . . . . . . Recycled Matter . | . . . . . . . . . Retrieved Matter . | . . . . . . . . . Retrieved Components 2 | . 2 . . . . . . . Parts Scanalyzed 1 | . . . . 1 . . . . Part Schematics Acquired 1 | . . . . 1 . . . . Parts Damaged . | . . . . . . . . . Bothacking | -11 -10 -10 -9 -6 -5 -4 -3 -2 ------------ Run | Yrd Mat Sub Scr Fac Fac Fac Res Res Used RIF Installer . | . . . . . . . . . Robots Hacked . | . . . . . . . . . Non-combat . | . . . . . . . . . Combat . | . . . . . . . . . Robot Hacks Applied . | . . . . . . . . . Relay Couplers Released . | . . . . . . . . . Fabnet Peak Effective % . | . . . . . . . . . Robots Rewired . | . . . . . . . . . Allies Hacked 4 | . . . . . . 1 . 3 Hacks Repelled . | . . . . . . . . . Allies | -11 -10 -10 -9 -6 -5 -4 -3 -2 -------- Run | Yrd Mat Sub Scr Fac Fac Fac Res Res Total Allies 3 | . . . . 1 . 1 . 1 Largest Group 1 | . . . . 1 . 1 . 1 Highest-Rated Group 139 | . . . . 39 . 123 . 139 Highest-Rated Ally 139 | . . . . 39 . 123 . 139 Initial UFD Resources 89 | . . . . 23 41 63 75 89 Total Orders . | . . . . . . . . . Ally Attacks 77 | . . . . 1 . 39 . 37 Total Damage 3881 | . . . . 225 . 1422 . 2234 Kills 27 | . . . . 2 . 8 . 17 Allies Corrupted . | . . . . . . . . . Allies Melted . | . . . . . . . . . Intel | -11 -10 -10 -9 -6 -5 -4 -3 -2 ------- Run | Yrd Mat Sub Scr Fac Fac Fac Res Res Active Infowar (turns) 9922 | 5 1376 2059 1570 1053 1011 713 1302 833 Optics 5339 | . . . 443 1053 1011 713 1286 833 Sensors 2194 | . . . . 694 421 452 627 . IFF 32 | . . . . 32 . . . . Seismic 4567 | 5 1376 2059 1127 . . . . . Robot Analysis Total 6 | . . . 6 . . . . . Derelict Logs Recovered 3 | . . 2 1 . . . . . Drone Launches . | . . . . . . . . . Drone Recoveries . | . . . . . . . . . Exploration | -11 -10 -10 -9 -6 -5 -4 -3 -2 ------------- Run | Yrd Mat Sub Scr Fac Fac Fac Res Res Turns Passed 10139 | 222 1376 2059 1570 1053 1011 713 1302 833 Spaces Moved 7751 | 85 667 1185 973 404 1212 964 797 1464 Core 293 | 1 . . . 27 244 5 9 7 Treads 3286 | 84 667 1185 973 377 . . . . Legs 874 | . . . . . . . 786 88 Wheels 225 | . . . . . 225 . . . Hover . | . . . . . . . . . Flight 3073 | . . . . . 743 959 2 1369 Fastest Speed 26 | 50 160 160 160 50 34 26 100 29 Average Speed 100 | 158 160 160 160 166 52 34 122 37 Slowest Speed 600 | 160 160 160 160 600 205 109 315 200 Overloaded Moves . | . . . . . . . . . Propulsion Burnouts . | . . . . . . . . . Robots Hopped 36 | . . . . . 7 7 . 22 Potential Cave-ins 14 | . . 6 . . . 8 . . Cave-ins Triggered . | . . . . . . . . . Exploration Rate (%) 43 | 4 92 58 83 13 43 32 22 42 Regions Visited 8 Branch Regions 2 Pre-discovered Areas 1 | . . . . 1 . . . . Known Exits Taken 4 | . . . . 1 1 1 1 . Unknown Exits Taken 4 | 1 1 1 1 . . . . . Scrap Searched 6 | . . 1 5 . . . . . Spaces Dug 73 | . . 9 . 10 14 23 15 2 Terrain Destroyed 418 | . 10 69 . 142 34 63 51 49 Melee 43 | . . . . . 14 23 6 . Projectile 72 | . . 10 . 6 . 3 45 8 AOE 303 | . 10 59 . 136 20 37 . 41 Terrain Rammed . | . . . . . . . . . Walls Destroyed . | . . . . . . . . . Machines Disabled . | . . . . . . . . . Actions | -11 -10 -10 -9 -6 -5 -4 -3 -2 --------- Run | Yrd Mat Sub Scr Fac Fac Fac Res Res Total 9516 | 138 915 1278 987 740 1531 1233 990 1704 Wait 1214 | 29 184 40 . 286 264 161 62 188 Move 7682 | 84 666 1184 972 404 1201 950 796 1425 Hop 26 | . . . . . 3 6 . 17 Pick Up 40 | 1 13 1 5 4 4 2 5 5 Fast Attach 102 | 7 . 1 2 6 20 19 28 19 Attach 15 | . . 1 . 3 1 3 2 5 Detach 18 | . . . 1 . 3 6 3 5 Swap 31 | 1 11 5 3 2 1 . 8 . Drop 65 | . 8 8 4 5 10 5 11 14 Fire 213 | 16 29 37 . 25 3 16 64 23 Melee 79 | . . . . . 21 50 8 . Ram . | . . . . . . . . . Kick 3 | . . . . . . . 3 . Crush 10 | . 4 1 . 5 . . . . Escape Stasis 15 | . . . . . . 15 . . Rewire 3 | . . . . . . . . 3 Trap . | . . . . . . . . . Miscellaneous . | . . . . . . . . . Route ------- -11/Scrapyard -10/Materials (discovered 5 exits: [*Mat x3] / [*Min] / [*Sub]) -10/Subcaves (discovered 2 exits: Rec / *Scr) -9/Scraptown -6/Factory (discovered 2 exits: *Fac / Low) -5/Factory (discovered 4 exits: *Fac x4) -4/Factory (discovered 4 exits: *Res x4) -3/Research (discovered 2 exits: *Res x2) -2/Research (discovered 2 exits: Qua x2) History --------- Turn | Location | Event 30 | -11/Scrapyard | Discovered new exit (range 16) 223 | -11/Scrapyard | Entered Materials 327 | -10/Materials | Build established: Mutant 520 | -10/Materials | Discovered new exit (range 13) 567 | -10/Materials | Discovered new exit (range 10) 797 | -10/Materials | Discovered new exit (range 7) 1103 | -10/Materials | Discovered new exit (range 9) 1194 | -10/Materials | Discovered new exit (range 15) 1599 | -10/Materials | Entered Subcaves 1600 | -10/Subcaves | Approached by a straggling Scientist 1799 | -10/Subcaves | Learned Materials trap positions 1976 | -10/Subcaves | Shifting Twisted Machinery released Sub. Monowheel 1984 | -10/Subcaves | Shifting Twisted Machinery released Spk. Treads 2108 | -10/Subcaves | Scientist uncovered a shortcut to Scraptown 2615 | -10/Subcaves | Identified exit to Recycling 3055 | -10/Subcaves | Visited 4L-MR0's lab 3071 | -10/Subcaves | Found Prototype Special Melee Weapon 3519 | -10/Subcaves | A Subdweller sparked back to life 3519 | -10/Subcaves | A Subdweller sparked back to life 3519 | -10/Subcaves | A Subdweller sparked back to life 3556 | -10/Subcaves | Found Prototype Power Core 3556 | -10/Subcaves | Identified Meta Core 3557 | -10/Subcaves | Attached Meta Core, gained temporary slots: Propulsion, Utility, Weapon 3658 | -10/Subcaves | Entered Scraptown 3658 | -9/Scraptown | System corruption cleaned by C-Scrubber 3681 | -9/Scraptown | Heard Great Nut preacher, LISTEN AND RECITE! 3901 | -9/Scraptown | Visited TADAMA 4187 | -9/Scraptown | Scanned Subdweller tech in exchange for log data 4232 | -9/Scraptown | Visited Science Testing Area 4267 | -9/Scraptown | Visited SPCMW 4325 | -9/Scraptown | Visited Symbiants 4368 | -9/Scraptown | Visited UFD Registry 4368 | -9/Scraptown | Registered with UFD as "Matrixslasher" 4408 | -9/Scraptown | Visited A0-MCA Data Center 4417 | -9/Scraptown | Given a B rating by A0-MCA 4422 | -9/Scraptown | Found A0-MCA's Component Scanner 4423 | -9/Scraptown | Identified 1B-0RG's Assimilator 4452 | -9/Scraptown | Visited Abandonware Association 4478 | -9/Scraptown | Visited Scrap Suit Storage 4686 | -9/Scraptown | Found Scrap Suit 4713 | -9/Scraptown | Visited Chapter 10 4769 | -9/Scraptown | Visited Infowarlord's Domain 4785 | -9/Scraptown | Found Spectral Analyzer 4860 | -9/Scraptown | Visited Analyses Database 4900 | -9/Scraptown | Visited DA-N13 Charitable Foundation 4916 | -9/Scraptown | Found DCF Scrap (30 items) 4960 | -9/Scraptown | Visited Scrapoid Research Area 4987 | -9/Scraptown | Visited Botcube Research 5000 | -9/Scraptown | Found Lrg. Botcube 5111 | -9/Scraptown | Met Optimus 5111 | -9/Scraptown | Accepted into 0bPrime 5218 | -9/Scraptown | Discovered new exit (range 5) 5228 | -9/Scraptown | Entered Factory 5228 | -6/Factory | Evolved 8 slots: Propulsion x1, Utility x4, Weapon x3 5229 | -6/Factory | Identified exit to Lower Caves 5560 | -6/Factory | Loaded intel: 8 recycling unit locations 5781 | -6/Factory | Learned location of Protoforge (-2) 5826 | -6/Factory | Build established: Skirmisher 6255 | -6/Factory | Core integrity fell below 50% 6269 | -6/Factory | Lrg. Botcube activated 6275 | -6/Factory | Lrg. Botcube completed mutation into core form, armed with 1 launcher. 6278 | -6/Factory | Discovered new exit (range 6) 6280 | -6/Factory | Identified exit to Factory 6281 | -6/Factory | Core integrity fell below 20% 6281 | -6/Factory | Entered another Factory area 6281 | -5/Factory | Evolved 2 slots: Propulsion x1, Utility x1 6294 | -5/Factory | Loaded intel: 8 recycling unit locations 6299 | -5/Factory | Lost 10 parts (1p4n3u2w) 6462 | -5/Factory | Build established: Mutant 7035 | -5/Factory | Spotted B-75 Beast 7128 | -5/Factory | Build established: Scout 7179 | -5/Factory | Identified exit to Factory 7181 | -5/Factory | Search patrols dispatched 7189 | -5/Factory | Lost 4 parts (1p1n2u) 7292 | -5/Factory | Entered another Factory area 7292 | -4/Factory | Evolved 2 slots: Propulsion x2 7339 | -4/Factory | Identified exit to Research 7397 | -4/Factory | Lost 3 parts (1p1n1u) 7402 | -4/Factory | Found Exp. Signal Interpreter 7404 | -4/Factory | Loaded intel: 8 recycling unit locations 7443 | -4/Factory | Allied Derelicts emerged from ambush trap array 7542 | -4/Factory | First assault squad dispatched 7625 | -4/Factory | Lost 4 parts (2p2n) 7643 | -4/Factory | Scraphulk reinforcements arrived 7962 | -4/Factory | Lost 3 parts (2n1w) 8005 | -4/Factory | Entered Research 8005 | -3/Research | Evolved 2 slots: Power x1, Utility x1 8031 | -3/Research | Lost 3 parts (1p2n) 8097 | -3/Research | Discovered new exit (range 6) 8107 | -3/Research | Identified exit to Research 8297 | -3/Research | Build established: Assassin 8363 | -3/Research | Loaded intel: 5 recycling unit locations 8497 | -3/Research | System corruption reached 10% 8551 | -3/Research | Lost 3 parts (1n2u) 8615 | -3/Research | Found Fusion Bomb Launcher 8617 | -3/Research | Found Fusion Bomb Launcher 8719 | -3/Research | Spotted B-86 Titan 8729 | -3/Research | Found Adv. Powered Armor 8802 | -3/Research | Discovered exit to Research (range 23) 8845 | -3/Research | Build established: Scavenger-Tank 9182 | -3/Research | Lost 7 parts (1p2n2u2w) 9307 | -3/Research | Entered another Research area 9307 | -2/Research | Evolved 2 slots: Utility x2 9317 | -2/Research | Found Prototype Hackware 9317 | -2/Research | Identified Exp. Hacking Suite 9346 | -2/Research | Loaded intel: 5 recycling unit locations 9459 | -2/Research | Scraphulk reinforcements arrived? 9679 | -2/Research | Identified exit to Quarantine 9751 | -2/Research | Core integrity fell below 50% 9763 | -2/Research | Build established: Hacker-Sprinter 9785 | -2/Research | Found Scrap Suit 9798 | -2/Research | Lost 4 parts (1p1n2u) 9807 | -2/Research | First assault squad dispatched 9847 | -2/Research | Spotted B-90 Cyclops 9975 | -2/Research | Found Prototype Launcher 9975 | -2/Research | Identified Gui. Micro-nuke Launcher 10012 | -2/Research | Found Spectral Analyzer 10026 | -2/Research | Lost 3 parts (1p2u) 10131 | -2/Research | Spotted B-90 Cyclops 10136 | -2/Research | Core integrity fell below 20% 10140 | -2/Research | Destroyed by L-61 Swordsman with Power Sword Last Messages --------------- 10017_ Connecting with Repair Station... 10017_ ALERT: Suspicious activity at Repair Station R003. Dispatching Investigation squad. 10050_ 38=3LZ:O:P9WXNVUW%KU1F3< 10057_ ALERT: Unidentified disturbance in Zone 6P, assault force dispatched. 10083_ System corrupted: Matter fused (-6). 10100_ System corrupted: Energy discharge (-32). 10115_ System corrupted: Energy discharge (-33). 10115_ Slug penetrates Wall. 10116_ Penetrated by Slug. 10116_ Cesium-ion Thruster destroyed. 10118_ Penetrated by Slug. 10118_ Slug penetrates Wall. 10124_ Scrap Suit destroyed. 10129_ Door malfunctions. 10129_ Terminal disabled. 10131_ W-44 Eye sends out distress signal. 10132_ Imp. Diametric Drive destroyed. 10138_ :WAG2FO N=TN|: CE0M# Map ----- +----------------------------------------------------+ | ???????????????????# """ #??????# | | ???????????????????# """ #??????# ###" ##### | | ???????????????????# #??????# #?#"T#???? | | ########+###### ?# ######## #?####???? | | # """ # #????????? | | # """ # #????????? | | + """ # #????????? | | # # #????????? | | ############### # # ###+####????????? | | ??????????????# # # #???????????????? | | ??????????????# #####/#### #???????????????? | | ??????????????+ #???????????????? | | ??????????????# p #???????????????? | | ??????????????# u p ] k #???????????????? | | ?????????????# "p #???????????????? | | ! ????????????# """ p########???????????????? | | ? ????????????# "T #??????????????????????? | | ?##???????????# """ p #??????????????????????? | | ####### ####### "" ##?????????????????????? | | ;#?????????????????????? | | #### ##?????????????????????? | | ##+#??#+##+#### #?????>????????????????? | | ??????????????# =]!#??????????????????????? | | ??????????????# =]!##?????????????????????? | | ??????????????# w=!!;#?????????????????????? | | ??????????????# @;#?????????????????????? | | ??????????????# l ;#?????????????????????? | | ??????????????# ;#?????????????????????? | | ??????????????# ##?????????????????????? | | ??????????????# #??????????????????????? | | ??????????????# =! g BB??????????????????????? | | ??????????????# =!gukBB??????????????????????? | | ??????????????# !g ] u#??????????????????????? | | ??????????????+ R ??????????????????????? | | ????????????? # k ??????????????????????? | | ???????????? + #??????????????????????? | | ??????????? ?########+####??????????????????????? | | ??????????? ?????????????????????????????????????? | | ?????????????????????????????????????????????????? | | ?????????????????????????????????????????????????? | | ?????????????????????????????????????????????????? | | ?????????????????????????????????????????????????? | | ?????????????????????????????????????????????????? | | ?????????????????????????????????????????????????? | | ?????????????????????????????????????????????????? | | ?????????????????????????????????????????????????? | | ?????????????????????????????????????????????????? | | ?????????????????????????????????????????????????? | | ?????????????????????????????????????????????????? | | ?????????????????????????????????????????????????? | +----------------------------------------------------+ Best States ------------- Heat Dissipation 65 Energy Generation 37 Energy Capacity 340 Matter Stores 300 Matter Capacity 550 Sight Range 24 Robot Scan Range 16 Terrain Scan Density 10 Additional Mass Support 9 Armor Coverage 550 Resistance: TH 20 Core Shielding 10 Power Shielding 66 Propulsion Shielding 66 Evasion (%) 70 Target Analysis 8 Recoil Reduction 4 Matter Filtering 30 Offensive Hacking 40 Authchip Count 1 Item Schematics ----------------- CPS Tube | -6/Factory | Scanalyzed Robot Schematics ------------------ None Fabricated ------------ Nothing Repaired ---------- Nothing Studied --------- Lgt. Treads | -6/Factory | Hacked Alien Tech Used ----------------- None Achievements -------------- Frankenstein Hulk Smash Challenges ------------ None Game ------ Seed MissileExpertSlamshotty Manual? 0 Play Time 01:19:21 Cumulative 162.4 hours Start 2026.04.30 @ 22:02:45 End 2026.04.30 @ 23:21:54 Sessions 1 Manual Loads 0 Difficulty Rogue Special Mode None Game No. 250 Rogue 250 Adventurer 0 Explorer 0 Win Type - Total 1 Types 1/0/0/0/0/0/0/0/0/0 Lore% 56 Gallery% 57 Achievement% 43 Wizard Run 0 Options --------- Layout 1 ASCII 0 Keyboard 1 Movement Arrows Keybinds 0 Fullscreen 1 Font 24/Smallcaps Map View 50x35 Zoom Use 0% Tactical HUD 1 Map Filters NONE Filters NONE Steam 1 RUN: 310415df-1620-4d5a-bb63-c148ed6b2e8b